bitfinex/quotes_BTCUSD_20251104
["timestamp","ask_amount","ask_price","bid_price","bid_amount"]
[1762269947763,1.41775928,104790.0,104780.0,0.46786388]
[1762269948231,1.40775929,104790.0,104780.0,0.46786388]
[1762269948491,1.41775928,104790.0,104780.0,0.46786388]
[1762269948692,1.41775928,104790.0,104750.0,0.04344]
[1762269948693,0.53091256,104760.0,104750.0,0.04344]
[1762269949034,0.53094901,104740.0,104730.0,0.04840228]
[1762269949234,0.53094901,104740.0,104730.0,0.12050445]
[1762269949485,0.53094901,104740.0,104730.0,0.09184228]
[1762269949685,0.56707897,104740.0,104730.0,0.09184228]
[1762269949889,0.56707897,104740.0,104730.0,0.07962228]
[1762269950048,0.56707897,104740.0,104720.0,0.03618228]
[1762269950049,0.53098366,104730.0,104720.0,0.03618228]
[1762269950499,0.53098366,104730.0,104720.0,0.22716776]
[1762269950711,0.53098366,104730.0,104720.0,0.03618228]
[1762269951050,0.60774467,104730.0,104720.0,0.03618228]
[1762269951257,0.34,104730.0,104720.0,0.22716776]
[1762269951462,0.34,104730.0,104720.0,0.26723776]
[1762269952369,0.352,104740.0,104730.0,0.19096724]
[1762269952591,0.349,104740.0,104730.0,0.27447724]
[1762269953005,0.34,104740.0,104730.0,0.27447724]
[1762269954191,0.347,104740.0,104730.0,0.27447724]
[1762269955701,0.53794901,104740.0,104730.0,0.0601]
[1762269955931,0.53494901,104740.0,104730.0,0.25106724]
[1762269956146,0.53694901,104740.0,104730.0,0.04344]
[1762269956288,0.60973736,104740.0,104730.0,0.04344]
[1762269956509,0.60373736,104740.0,104730.0,0.04344]
[1762269956711,0.61073736,104740.0,104730.0,0.04344]
[1762269958323,0.54494901,104740.0,104730.0,0.04344]
[1762269959147,0.54494901,104740.0,104730.0,0.23440724]
[1762269959353,0.54494901,104740.0,104730.0,0.25106724]
[1762269959538,0.354,104740.0,104730.0,0.27447724]
[1762269959875,0.347,104740.0,104730.0,0.27447724]
[1762269961018,0.297,104740.0,104730.0,0.47447724]
[1762269961225,0.007,104740.0,104730.0,0.47447724]
[1762269961439,0.012,104740.0,104730.0,0.04344]
[1762269961629,0.012,104740.0,104730.0,0.23440724]
[1762269961817,0.20294901,104740.0,104730.0,0.23440724]
[1762269962051,0.19094901,104740.0,104730.0,0.04344]
[1762269962227,0.22431098,104750.0,104740.0,0.03618228]
[1762269962633,0.23955098,104750.0,104740.0,0.03618228]
[1762269963022,0.62355518,104750.0,104740.0,0.03618228]
[1762269963813,0.57955098,104750.0,104740.0,0.03618228]
[1762269964801,0.19094901,104740.0,104730.0,0.07962228]
[1762269965025,0.65565869,104740.0,104730.0,0.07962228]
[1762269966102,0.65565869,104740.0,104730.0,0.03618228]
[1762269966324,0.53096724,104730.0,104720.0,0.5]
[1762269966499,0.58114724,104730.0,104720.0,0.5]
[1762269968178,0.05018,104730.0,104720.0,0.72716776]
[1762269968380,0.34,104740.0,104730.0,0.19096724]
[1762269968578,0.34,104740.0,104730.0,0.23440724]
[1762269968806,0.53094901,104740.0,104730.0,0.23440724]
[1762269969188,0.53094901,104740.0,104730.0,0.04344]
[1762269969593,0.56955901,104740.0,104730.0,0.04344]
[1762269970020,0.53094901,104740.0,104730.0,0.23740724]
[1762269970400,0.56955901,104740.0,104730.0,0.04644]
[1762269970856,0.57655901,104740.0,104730.0,0.23740724]
[1762269971060,0.38561,104740.0,104730.0,0.23740724]
[1762269971492,0.57655901,104740.0,104730.0,0.23440724]
[1762269971653,0.54494901,104740.0,104730.0,0.04344]
[1762269971991,0.58355901,104740.0,104730.0,0.04344]
[1762269972278,0.56018901,104740.0,104730.0,0.04344]
[1762269972480,0.354,104740.0,104730.0,0.27447724]
[1762269973361,0.354,104740.0,104730.0,0.47447724]
[1762269973362,0.329,104740.0,104730.0,0.47447724]
[1762269973573,0.00023817,104770.0,104760.0,0.19091256]
[1762269973774,0.00032996,104770.0,104760.0,0.43489256]
[1762269973975,0.00032996,104770.0,104760.0,0.43543256]
[1762269974327,0.34,104780.0,104770.0,0.39089433]
[1762269974529,0.00028,104790.0,104780.0,0.19087612]
[1762269974744,0.00028,104790.0,104780.0,0.43473612]
[1762269975158,0.00075624,104790.0,104780.0,0.43473612]
[1762269975368,0.0002,104810.0,104800.0,0.2]
[1762269975579,0.0002,104820.0,104810.0,0.19082148]
[1762269975788,0.0002,104820.0,104810.0,0.39124148]
[1762269977124,0.0002,104820.0,104810.0,0.20042]
[1762269977371,0.0002,104820.0,104810.0,0.19124148]
[1762269977813,0.0002,104820.0,104810.0,0.00042]
[1762269978022,0.0002,104820.0,104810.0,0.23468148]
[1762269979090,0.0002,104820.0,104810.0,0.24429586]
[1762269979291,0.19100328,104820.0,104810.0,0.05326438]
[1762269979496,0.19100328,104820.0,104810.0,0.05305438]
[1762269979812,0.19100328,104820.0,104810.0,0.24408586]
[1762269980157,0.19100328,104820.0,104810.0,0.23447148]
[1762269980360,0.19100328,104820.0,104810.0,0.24416571]
[1762269980534,0.0002,104820.0,104810.0,0.05334423]
[1762269980744,0.0002,104820.0,104810.0,0.23468148]
[1762269981803,0.0002,104820.0,104810.0,0.43468148]
[1762269982014,0.0002,104820.0,104810.0,0.48025763]
[1762269982226,0.00091408,104820.0,104810.0,0.48025763]
[1762269982640,1e-08,104820.0,104810.0,0.44407535]
[1762269982844,0.30451,104840.0,104830.0,0.39099508]
[1762269983053,0.19069619,104880.0,104860.0,0.19072503]
[1762269983257,0.19071282,104870.0,104850.0,0.19072265]
[1762269983464,0.19071282,104870.0,104860.0,0.04344]
[1762269983885,0.19071282,104870.0,104860.0,0.04365]
[1762269984105,0.24182282,104870.0,104860.0,0.04344]
[1762269984316,0.19074868,104850.0,104820.0,0.59080193]
[1762269984515,0.19576798,104840.0,104830.0,0.10825297]
[1762269984721,0.19576798,104840.0,104830.0,0.07962228]
[1762269984927,0.20776798,104840.0,104830.0,0.07962228]
[1762269985545,0.21176798,104840.0,104830.0,0.07962228]
[1762269985754,0.00948047,104840.0,104830.0,0.27040736]
[1762269985953,0.00448047,104840.0,104830.0,0.27040736]
[1762269986170,0.19524735,104840.0,104830.0,0.07962228]
[1762269986594,0.24635735,104840.0,104830.0,0.07962228]
[1762269986728,0.22332735,104840.0,104830.0,0.07962228]
[1762269987138,0.24635735,104840.0,104830.0,0.03618228]
[1762269987342,0.25135735,104840.0,104830.0,0.03618228]
[1762269987962,0.97340569,104840.0,104830.0,0.03618228]
[1762269988184,0.25135735,104840.0,104830.0,0.03618228]
[1762269988625,0.25183324,104840.0,104830.0,0.03618228]
[1762269988855,0.24783324,104840.0,104830.0,0.03618228]
[1762269989254,1.01734986,104840.0,104830.0,0.012]
[1762269989754,0.19082148,104810.0,104800.0,0.0518]
[1762269990133,0.19082148,104810.0,104800.0,0.24263969]
[1762269990338,0.19082148,104810.0,104800.0,0.0518]
[1762269990538,0.19082148,104810.0,104800.0,0.24263969]
[1762269990893,0.19082148,104810.0,104800.0,0.0518]
[1762269991112,0.19081945,104820.0,104800.0,0.24263969]
[1762269991337,0.19082148,104810.0,104800.0,0.27882197]
[1762269991545,0.19081945,104820.0,104810.0,0.03618228]
[1762269992639,0.23009945,104820.0,104810.0,0.03618228]
[1762269992842,0.23109945,104820.0,104810.0,0.05018228]
[1762269993453,0.95314779,104820.0,104810.0,0.05018228]
[1762269993689,0.95314779,104820.0,104810.0,0.06718228]
[1762269993839,0.23109945,104820.0,104810.0,0.06718228]
[1762269994574,0.95314779,104820.0,104810.0,0.06718228]
[1762269994991,0.23109945,104820.0,104810.0,0.06718228]
[1762269996351,0.19181945,104820.0,104810.0,0.06718228]
[1762269996551,0.23109945,104820.0,104810.0,0.06718228]
[1762269997811,0.20729945,104820.0,104810.0,0.06718228]
[1762269998012,0.19181945,104820.0,104810.0,0.06718228]
[1762269998218,0.23109945,104820.0,104810.0,0.06718228]
[1762269998673,1.04772385,104820.0,104810.0,0.06718228]
[1762269998876,0.95314779,104820.0,104810.0,0.06718228]
[1762269999980,0.23109945,104820.0,104810.0,0.06718228]
[1762270000395,0.95314779,104820.0,104810.0,0.06718228]
[1762270001199,0.23109945,104820.0,104810.0,0.06718228]
[1762270001388,1.29314779,104820.0,104810.0,0.06718228]
[1762270001994,0.53082148,104810.0,104800.0,0.0099]
[1762270002200,1.3895095,104810.0,104800.0,0.0099]
[1762270002424,0.66746116,104810.0,104800.0,0.0099]
[1762270002625,0.58136148,104810.0,104800.0,0.0099]
[1762270002851,0.66746116,104810.0,104800.0,0.0099]
[1762270003182,1.3895095,104810.0,104800.0,0.0099]
[1762270003391,0.66746116,104810.0,104800.0,0.0099]
[1762270003575,0.58136148,104810.0,104800.0,0.0289]
[1762270003965,0.66746116,104810.0,104800.0,0.0289]
[1762270004168,0.66746116,104810.0,104800.0,0.06508228]
[1762270004934,0.66746116,104810.0,104800.0,0.05808228]
[1762270005377,0.66746116,104810.0,104800.0,0.05508228]
[1762270005576,0.69899652,104810.0,104800.0,0.06208228]
[1762270005934,0.69899652,104810.0,104800.0,0.05308228]
[1762270006141,1.42104486,104810.0,104800.0,0.05908228]
[1762270006401,1.23207855,104810.0,104800.0,0.05908228]
[1762270006784,1.20154319,104810.0,104800.0,0.05908228]
[1762270007523,0.19089433,104770.0,104750.0,0.1474]
[1762270007738,0.20321256,104760.0,104750.0,0.05184]
[1762270008149,0.20321256,104760.0,104740.0,0.19094516]
[1762270008150,0.24295256,104760.0,104740.0,0.19094516]
[1762270008354,0.20043904,104770.0,104750.0,0.01632]
[1762270008525,0.23635992,104780.0,104770.0,0.19089433]
[1762270008526,0.0123,104780.0,104770.0,0.19089433]
[1762270008731,0.22409362,104790.0,104770.0,0.19098609]
[1762270008892,0.19087612,104780.0,104770.0,0.19098609]
[1762270009295,0.20045362,104790.0,104770.0,0.19098609]
[1762270009506,0.19085607,104800.0,104790.0,0.03618228]
[1762270009708,0.21449607,104800.0,104790.0,0.03618228]
[1762270009933,0.23059607,104800.0,104790.0,0.03618228]
[1762270010338,0.20695607,104800.0,104790.0,0.03618228]
[1762270010597,0.19083969,104800.0,104790.0,0.22703868]
[1762270010756,0.23531471,104810.0,104790.0,0.22704018]
[1762270010956,0.21167471,104810.0,104790.0,0.22704018]
[1762270011177,0.19083969,104800.0,104790.0,0.22704018]
[1762270011579,0.19083969,104800.0,104790.0,0.27044018]
[1762270011817,0.21167471,104810.0,104790.0,0.28676018]
[1762270012004,0.21167471,104810.0,104800.0,0.19083969]
[1762270012203,0.19183969,104800.0,104790.0,0.08958228]
[1762270012453,0.19183969,104800.0,104790.0,0.28044018]
[1762270012624,0.19083969,104800.0,104790.0,0.27744018]
[1762270012861,0.19583969,104800.0,104790.0,0.27144018]
[1762270013207,0.21167471,104810.0,104800.0,0.19083969]
[1762270013434,0.55267471,104810.0,104800.0,0.19083969]
[1762270013766,0.55267471,104810.0,104790.0,0.31318018]
[1762270013767,0.53083969,104800.0,104790.0,0.27244018]
[1762270014825,0.53083969,104800.0,104790.0,0.08158228]
[1762270015083,0.53083969,104800.0,104790.0,0.07958228]
[1762270015299,0.53083969,104800.0,104790.0,0.0794863]
[1762270015499,0.54183969,104800.0,104790.0,0.0804863]
[1762270016111,0.59457969,104800.0,104790.0,0.0824863]
[1762270016729,1.12766172,104800.0,104790.0,0.0824863]
[1762270017342,1.22223778,104800.0,104790.0,0.0390863]
[1762270017577,0.59457969,104800.0,104790.0,0.0390863]
[1762270017783,1.12766172,104800.0,104790.0,0.0390863]
[1762270018324,1.10366172,104800.0,104790.0,0.0360863]
[1762270018701,1.10466172,104800.0,104790.0,0.0410863]
[1762270018943,0.57157969,104800.0,104790.0,0.0510863]
[1762270019147,1.10466172,104800.0,104790.0,0.0510863]
[1762270019554,0.20793969,104800.0,104790.0,0.0510863]
[1762270019727,0.19183969,104800.0,104790.0,0.1029263]
[1762270020078,0.76466172,104800.0,104790.0,0.0944863]
[1762270020882,0.76466172,104800.0,104790.0,0.0510863]
[1762270020883,1.29774375,104800.0,104790.0,0.0510863]
[1762270021083,1.29774375,104800.0,104790.0,0.015]
[1762270021388,0.19087612,104780.0,104770.0,9.176e-05]
[1762270021609,0.74005815,104780.0,104770.0,9.176e-05]
[1762270021816,0.76369815,104780.0,104770.0,9.176e-05]
[1762270022015,0.85827421,104780.0,104770.0,9.176e-05]
[1762270022184,0.89669268,104780.0,104770.0,9.176e-05]
[1762270022383,1.21612754,104780.0,104770.0,9.176e-05]
[1762270022633,1.23767938,104780.0,104770.0,0.00709176]
[1762270022761,1.2469985,104780.0,104770.0,0.00709176]
[1762270023145,1.2479985,104780.0,104770.0,1e-08]
[1762270023382,0.61703046,104750.0,104740.0,0.03618228]
[1762270023603,1.25930843,104750.0,104740.0,9.179e-05]
[1762270023818,1.28294843,104750.0,104740.0,9.179e-05]
[1762270024539,0.58297078,104750.0,104740.0,9.179e-05]
[1762270024781,1.11605281,104750.0,104740.0,9.179e-05]
[1762270025562,0.55933078,104750.0,104740.0,0.03627407]
[1762270025769,0.58897078,104750.0,104740.0,0.03727407]
[1762270025948,1.20815249,104750.0,104740.0,0.03727407]
[1762270026182,0.74350272,104750.0,104740.0,0.03627407]
[1762270026418,1.27658475,104750.0,104740.0,0.03627407]
[1762270026608,1.20315249,104750.0,104740.0,0.04227407]
[1762270026812,1.11705281,104750.0,104740.0,0.04227407]
[1762270027019,0.54423078,104750.0,104740.0,0.04869407]
[1762270027223,0.53193078,104750.0,104740.0,0.23964308]
[1762270027400,0.53193078,104750.0,104740.0,0.06501407]
[1762270027597,0.53193078,104750.0,104740.0,0.04869407]
[1762270027841,0.58397078,104750.0,104740.0,0.04227407]
[1762270028252,0.54423078,104750.0,104740.0,0.04227407]
[1762270028378,0.54423078,104750.0,104740.0,0.23322308]
[1762270029197,0.54623078,104750.0,104740.0,0.23322308]
[1762270029403,0.54623078,104750.0,104740.0,0.04227407]
[1762270029605,0.66091676,104750.0,104740.0,0.04227407]
[1762270029807,1.19399879,104750.0,104740.0,0.04227407]
[1762270030417,1.28009847,104750.0,104740.0,0.04227407]
[1762270032191,1.289645,104750.0,104720.0,0.5]
[1762270032371,0.29316692,104730.0,104720.0,0.5]
[1762270032599,0.41138298,104730.0,104720.0,0.5]
[1762270032735,0.23070724,104730.0,104720.0,0.5]
[1762270032959,0.57070724,104730.0,104720.0,0.5]
[1762270033358,0.53096724,104730.0,104720.0,0.5]
[1762270033755,0.54326724,104730.0,104720.0,0.5]
[1762270034210,0.66079451,104730.0,104720.0,0.53618228]
[1762270034436,0.65879451,104730.0,104720.0,0.09502787]
[1762270034634,0.65879451,104730.0,104700.0,0.0004]
[1762270034635,0.19100372,104710.0,104700.0,0.0004]
[1762270034773,0.79068626,104710.0,104700.0,0.00088096]
[1762270034975,0.82464871,104710.0,104700.0,0.00088096]
[1762270035386,0.81522626,104710.0,104700.0,0.00088096]
[1762270035998,1.24132594,104710.0,104700.0,0.00088096]
[1762270036174,1.28472594,104710.0,104700.0,0.00088096]
[1762270036581,0.75164391,104710.0,104700.0,0.00088096]
[1762270036815,1.28472594,104710.0,104700.0,0.00088096]
[1762270037158,1.28472594,104710.0,104700.0,0.00888096]
[1762270037159,1.28572594,104710.0,104700.0,0.00888096]
[1762270037363,1.28572594,104710.0,104700.0,1e-08]
[1762270037499,0.19104021,104690.0,104680.0,0.0004]
[1762270037699,0.35596771,104690.0,104680.0,0.00053776]
[1762270037905,0.88904974,104690.0,104680.0,0.00053776]
[1762270038104,0.93244974,104690.0,104680.0,0.00053776]
[1762270038514,1.47553176,104690.0,104680.0,0.00053776]
[1762270038712,0.94244973,104690.0,104680.0,0.00053776]
[1762270038921,0.19107671,104670.0,104660.0,0.03618228]
[1762270039111,0.86455353,104670.0,104660.0,0.03632663]
[1762270039316,0.93249353,104670.0,104660.0,0.03632663]
[1762270039518,0.19109497,104660.0,104650.0,0.00485392]
[1762270039718,0.776887,104660.0,104650.0,0.00485392]
[1762270041024,0.24380497,104660.0,104650.0,0.00485392]
[1762270041227,0.80013043,104660.0,104650.0,0.00485392]
[1762270042116,0.80213043,104660.0,104650.0,0.00585392]
[1762270042291,0.80413043,104660.0,104650.0,0.00585392]
[1762270042493,0.80213043,104660.0,104650.0,0.00585392]
[1762270042865,0.80213043,104660.0,104650.0,0.00485392]
[1762270043072,0.80013043,104660.0,104650.0,0.00485392]
[1762270043273,0.80113043,104660.0,104650.0,0.00785392]
[1762270044064,0.80013043,104660.0,104650.0,0.00485392]
[1762270044368,0.2670484,104660.0,104650.0,0.00485392]
[1762270044566,0.2690484,104660.0,104650.0,0.00485392]
[1762270044826,0.19114976,104630.0,104620.0,0.41998228]
[1762270045046,0.87673121,104630.0,104620.0,0.00054419]
[1762270045292,0.90127121,104630.0,104620.0,0.00054419]
[1762270045953,0.36818918,104630.0,104620.0,0.00054419]
[1762270046375,0.38118918,104630.0,104620.0,0.00254419]
[1762270047199,0.95771121,104630.0,104620.0,0.00254419]
[1762270047404,0.94671121,104630.0,104620.0,0.00054419]
[1762270048587,0.94471121,104630.0,104620.0,0.00054419]
[1762270049004,0.94671121,104630.0,104620.0,0.00054419]
[1762270050687,0.90427121,104630.0,104620.0,0.00254419]
[1762270050892,0.90427121,104630.0,104620.0,0.00326017]
[1762270051042,0.94671121,104630.0,104620.0,0.00126017]
[1762270051447,0.94871121,104630.0,104620.0,0.00226017]
[1762270051870,0.9587112,104630.0,104620.0,0.00226017]
[1762270052191,0.96807876,104630.0,104620.0,0.00226017]
[1762270052389,0.94871121,104630.0,104620.0,0.00226017]
[1762270052791,0.90527121,104630.0,104620.0,0.00226017]
[1762270052992,0.94871121,104630.0,104620.0,0.00226017]
[1762270053147,0.90527121,104630.0,104620.0,0.00226017]
[1762270053346,0.94871121,104630.0,104620.0,0.00226017]
[1762270053802,0.41562918,104630.0,104620.0,0.00226017]
[1762270053982,0.94871121,104630.0,104620.0,0.00226017]
[1762270054322,0.01609,104630.0,104620.0,0.34226017]
[1762270054535,0.004,104630.0,104620.0,0.5736182]
[1762270054949,0.19514976,104630.0,104620.0,0.35856017]
[1762270055152,0.2457295,104630.0,104620.0,0.34226017]
[1762270055361,0.2826395,104630.0,104620.0,0.00226017]
[1762270055788,0.90172121,104630.0,104620.0,0.00226017]
[1762270055992,0.37873918,104630.0,104620.0,0.00126017]
[1762270056203,0.36673918,104630.0,104620.0,0.00126017]
[1762270056562,0.38573918,104630.0,104620.0,0.00326017]
[1762270057184,0.38573918,104630.0,104620.0,0.00126017]
[1762270057185,0.89982121,104630.0,104620.0,0.00126017]
[1762270057650,0.90082121,104630.0,104620.0,0.00526017]
[1762270057861,0.90282121,104630.0,104620.0,0.00526017]
[1762270058070,0.90082121,104630.0,104620.0,0.00526017]
[1762270058240,0.36773918,104630.0,104620.0,0.00526017]
[1762270058401,0.36873918,104630.0,104620.0,0.00526017]
[1762270058601,0.33010944,104630.0,104620.0,0.00526017]
[1762270058806,0.86319147,104630.0,104620.0,0.00526017]
[1762270059125,0.86219147,104630.0,104620.0,0.00526017]
[1762270059520,0.86419147,104630.0,104620.0,0.00526017]
[1762270059770,0.86319147,104630.0,104620.0,0.00126017]
[1762270059970,0.95776753,104630.0,104620.0,0.00126017]
[1762270060123,0.95976753,104630.0,104620.0,0.00226017]
[1762270060321,0.4266855,104630.0,104620.0,0.00226017]
[1762270060521,0.95976753,104630.0,104620.0,0.00226017]
[1762270060723,0.4266855,104630.0,104620.0,0.00226017]
[1762270061089,0.95976753,104630.0,104620.0,0.00226017]
[1762270061451,0.95776753,104630.0,104620.0,0.00226017]
[1762270061676,0.19122287,104590.0,104580.0,0.34]
[1762270062000,0.19122287,104590.0,104580.0,0.34048055]
[1762270062001,0.28032722,104590.0,104580.0,0.34048055]
[1762270062123,0.21869287,104590.0,104580.0,0.34048055]
[1762270062325,0.24208287,104590.0,104580.0,0.0014357]
[1762270062932,0.24708287,104590.0,104580.0,0.0014357]
[1762270063613,0.25408287,104590.0,104580.0,0.0024357]
[1762270063791,0.34144332,104590.0,104580.0,0.0024357]
[1762270064165,0.427543,104590.0,104580.0,0.0024357]
[1762270064354,0.96062503,104590.0,104580.0,0.0024357]
[1762270066508,1.15239025,104590.0,104580.0,0.0024357]
[1762270066920,1.17020368,104590.0,104580.0,0.0024357]
[1762270067152,1.17020368,104590.0,104580.0,0.0014357]
[1762270067153,1.16320368,104590.0,104580.0,0.0014357]
[1762270067317,1.16321226,104590.0,104580.0,0.0014357]
[1762270067512,1.16521226,104590.0,104580.0,0.0024357]
[1762270067860,1.16021226,104590.0,104580.0,0.0024357]
[1762270068056,0.19124115,104580.0,104570.0,0.0004]
[1762270068357,1.04969446,104580.0,104570.0,0.00054446]
[1762270068495,1.09313446,104580.0,104570.0,0.00054446]
[1762270069202,0.36828721,104580.0,104570.0,0.00054446]
[1762270069419,0.20726944,104570.0,104550.0,0.03658228]
[1762270069625,0.20726944,104570.0,104540.0,0.3404]
[1762270069626,0.19129603,104550.0,104540.0,0.3404]
[1762270069833,0.91614328,104550.0,104540.0,0.3404]
[1762270070239,0.19129603,104550.0,104540.0,0.3404]
[1762270070465,0.25675603,104550.0,104540.0,0.3404]
[1762270070674,0.99102412,104550.0,104540.0,0.0004]
[1762270070878,0.26617687,104550.0,104540.0,0.0004]
[1762270071217,0.26817687,104550.0,104540.0,0.0084]
[1762270071424,0.99302412,104550.0,104540.0,0.0084]
[1762270072102,0.99302412,104550.0,104520.0,0.0004]
[1762270072103,0.19133263,104530.0,104520.0,0.0004]
[1762270072329,0.2295989,104530.0,104520.0,0.00054449]
[1762270072736,0.27742978,104540.0,104520.0,0.37989449]
[1762270072940,0.1913301,104540.0,104530.0,0.02662]
[1762270073304,0.1913301,104540.0,104530.0,0.0114]
[1762270073923,0.1913301,104540.0,104530.0,0.02662]
[1762270074285,0.19331432,104540.0,104530.0,0.06094473]
[1762270074691,0.002,104540.0,104530.0,0.65590532]
[1762270074896,0.19331432,104540.0,104530.0,0.40094473]
[1762270075162,0.19531432,104540.0,104530.0,0.40094473]
[1762270075701,0.19531432,104540.0,104530.0,0.36159473]
[1762270075910,0.19531432,104540.0,104530.0,0.35019473]
[1762270076561,0.19531432,104540.0,104530.0,0.37681473]
[1762270076808,0.19531432,104540.0,104530.0,0.40094473]
[1762270077221,0.004,104540.0,104530.0,0.59227736]
[1762270077427,0.19531432,104540.0,104530.0,0.40094473]
[1762270079498,0.24258532,104540.0,104530.0,0.40094473]
[1762270080690,0.19531432,104540.0,104530.0,0.37681473]
[1762270080945,0.92016157,104540.0,104530.0,0.35019473]
[1762270082199,0.19531432,104540.0,104530.0,0.36159473]
[1762270082424,0.19531432,104540.0,104530.0,0.35019473]
[1762270082653,0.92016157,104540.0,104530.0,0.35019473]
[1762270082848,1.01473763,104540.0,104530.0,0.35019473]
[1762270083105,0.19133263,104530.0,104520.0,0.00054449]
[1762270083300,1.04571956,104530.0,104520.0,0.00054449]
[1762270083666,1.04571956,104530.0,104520.0,4.49e-06]
[1762270083875,0.19136924,104510.0,104500.0,0.0004]
[1762270084072,1.08402819,104510.0,104500.0,0.0004]
[1762270084864,0.19138755,104500.0,104490.0,0.34]
[1762270085085,0.19142419,104480.0,104470.0,0.3404]
[1762270085295,1.00237112,104480.0,104470.0,0.37706458]
[1762270085909,1.00237112,104480.0,104470.0,0.03706458]
[1762270086136,1.0295591,104480.0,104470.0,0.03706458]
[1762270086368,0.19147917,104450.0,104440.0,0.3404]
[1762270086601,0.19147917,104450.0,104440.0,0.34054457]
[1762270087014,0.19147917,104450.0,104440.0,0.00054457]
[1762270087216,0.20104643,104470.0,104440.0,0.05129457]
[1762270087419,0.29661567,104460.0,104440.0,0.05129457]
[1762270087652,0.01905401,104460.0,104440.0,0.21866135]
[1762270087781,0.19144754,104470.0,104460.0,0.01522]
[1762270088191,0.19146084,104460.0,104450.0,0.37618228]
[1762270088394,0.37213658,104460.0,104450.0,0.37618228]
[1762270088595,0.37213658,104460.0,104450.0,0.34]
[1762270088796,0.27756052,104460.0,104450.0,0.37618228]
[1762270089192,0.19146084,104460.0,104450.0,0.39140228]
[1762270089421,0.19144754,104470.0,104450.0,0.60701117]
[1762270089633,0.19144754,104470.0,104460.0,0.01522]
[1762270089834,0.19344754,104470.0,104460.0,0.04135]
[1762270090183,0.05277306,104470.0,104460.0,0.23281084]
[1762270090386,0.31428305,104480.0,104460.0,0.23081084]
[1762270090387,0.11328766,104480.0,104460.0,0.23081084]
[1762270090621,0.304712,104480.0,104470.0,0.02662]
[1762270091226,0.02718798,104480.0,104470.0,0.21806251]
[1762270091428,0.20095692,104500.0,104480.0,0.53142419]
[1762270091633,0.19140587,104490.0,104480.0,0.37935]
[1762270091839,0.27750555,104490.0,104480.0,0.35522]
[1762270092384,0.27750555,104490.0,104480.0,0.01522]
[1762270092586,0.19142419,104480.0,104470.0,0.37553]
[1762270092829,0.19142419,104480.0,104470.0,0.3514]
[1762270093003,0.19142419,104480.0,104470.0,0.36662]
[1762270093206,0.23973137,104490.0,104470.0,0.58219251]
[1762270093431,0.25173137,104490.0,104480.0,0.01622]
[1762270093630,0.01247925,104490.0,104480.0,0.04035]
[1762270093806,0.19188512,104490.0,104480.0,0.03935]
[1762270094660,0.19188512,104490.0,104480.0,0.23077419]
[1762270094862,0.19188512,104490.0,104480.0,0.03935]
[1762270095080,0.00047925,104490.0,104480.0,0.23077419]
[1762270095622,0.19188512,104490.0,104480.0,0.08283]
[1762270096212,0.24316932,104490.0,104480.0,0.0836]
[1762270096519,0.24316932,104490.0,104480.0,0.27502419]
[1762270097009,0.01247925,104490.0,104480.0,0.27502419]
[1762270097367,0.01247925,104490.0,104480.0,0.0836]
[1762270097569,0.01247925,104490.0,104480.0,0.27502419]
[1762270098875,0.01247925,104490.0,104480.0,0.61502419]
[1762270099451,0.22293913,104490.0,104480.0,0.4007]
[1762270099652,0.33141753,104490.0,104480.0,0.4007]
[1762270099993,0.33141753,104490.0,104480.0,0.40189558]
[1762270100871,0.33141753,104490.0,104480.0,0.59331977]
[1762270100872,0.05391198,104490.0,104480.0,0.59331977]
[1762270101062,0.01247925,104490.0,104480.0,0.61621977]
[1762270102326,0.00047925,104490.0,104480.0,0.61421977]
[1762270102725,0.02047925,104490.0,104480.0,0.61521977]
[1762270103261,0.00047925,104490.0,104480.0,0.61421977]
[1762270103671,0.01547925,104490.0,104480.0,0.61521977]
[1762270104058,0.00047925,104490.0,104480.0,0.61421977]
[1762270105607,0.02247925,104490.0,104480.0,0.61621977]
[1762270106296,0.02247925,104490.0,104480.0,0.37931558]
[1762270106297,0.19188512,104490.0,104480.0,0.37931558]
[1762270106614,0.01747925,104490.0,104480.0,0.61617977]
[1762270107181,0.01747925,104490.0,104480.0,0.61417977]
[1762270107182,0.00047925,104490.0,104480.0,0.61417977]
[1762270107976,0.19188512,104490.0,104480.0,0.42275558]
[1762270108288,0.23021241,104490.0,104480.0,0.42275558]
[1762270108495,0.25121241,104490.0,104480.0,0.42475558]
[1762270109038,0.21288512,104490.0,104480.0,0.42475558]
[1762270109213,0.19188512,104490.0,104480.0,0.61417977]
[1762270109415,0.00047925,104490.0,104480.0,0.61417977]
[1762270109635,0.20388512,104490.0,104480.0,0.61617977]
[1762270110455,0.01247925,104490.0,104480.0,0.61617977]
[1762270112095,0.20388512,104490.0,104480.0,0.61617977]
[1762270112307,0.01247925,104490.0,104480.0,0.61617977]
[1762270113245,0.20388512,104490.0,104480.0,0.42475558]
[1762270113443,0.2242718,104490.0,104480.0,0.61617977]
[1762270113663,0.2242718,104490.0,104480.0,0.40185558]
[1762270114267,0.2242718,104490.0,104480.0,0.42619558]
[1762270114470,0.2242718,104490.0,104480.0,0.61761977]
[1762270114681,0.01247925,104490.0,104480.0,0.61761977]
[1762270117124,0.00047925,104490.0,104480.0,0.61561977]
[1762270117502,0.01947925,104490.0,104480.0,0.61761977]
[1762270117934,0.00047925,104490.0,104480.0,0.61561977]
[1762270118486,0.00047925,104490.0,104480.0,0.81561977]
[1762270118691,0.22751491,104530.0,104520.0,0.34]
[1762270118865,0.24540602,104530.0,104520.0,0.3551]
[1762270119067,0.24540602,104530.0,104520.0,0.34]
[1762270119213,0.3315057,104530.0,104520.0,0.34023902]
[1762270119567,0.42608176,104530.0,104520.0,0.34023902]
[1762270119770,0.42608176,104530.0,104520.0,0.00023902]
[1762270120421,0.05407339,104530.0,104520.0,0.23102995]
[1762270120625,0.03618228,104540.0,104530.0,0.53132347]
[1762270120846,0.03618228,104540.0,104530.0,0.36692]
[1762270120847,0.05407851,104540.0,104530.0,0.36692]
[1762270121063,0.24539283,104540.0,104530.0,0.36692]
[1762270121229,0.24539283,104540.0,104530.0,0.55825263]
[1762270121445,0.29767208,104540.0,104530.0,0.55825263]
[1762270121656,0.27977585,104540.0,104530.0,0.36692]
[1762270121800,0.28277585,104540.0,104530.0,0.36892]
[1762270122423,0.09146153,104540.0,104530.0,0.58459263]
[1762270123014,0.2304966,104540.0,104530.0,0.342]
[1762270123362,0.2304966,104540.0,104530.0,0.36892]
[1762270123803,0.2304966,104540.0,104530.0,0.4367]
[1762270125302,0.2204966,104540.0,104530.0,0.4367]
[1762270125482,0.26167625,104540.0,104530.0,0.41236]
[1762270125677,0.26167625,104540.0,104530.0,0.39726]
[1762270126247,0.2204966,104540.0,104530.0,0.43729]
[1762270127342,0.02918228,104540.0,104530.0,0.43729]
[1762270127555,0.2204966,104540.0,104530.0,0.43729]
[1762270128515,0.02918228,104540.0,104530.0,0.62862263]
[1762270128967,0.2204966,104540.0,104530.0,0.43729]